[Event "Early-Titled-Tuesday-Blitz-September-26-2023"]
[Site "Chess.com"]
[Date "2023.09.26"]
[Round "8"]
[White "Eagle_2019"]
[Black "Lady_Nika"]
[Result "0-1"]
[WhiteElo "2671"]
[BlackElo "2497"]
[TimeControl "180+1"]
[EndTime "9:29:26 PDT"]
[Termination "Lady_Nika won by checkmate"]

1. d4 {[%clk 0:03:00.9]} 1... d5 {[%clk 0:03:00.1]} 2. c4 {[%clk 0:02:59.7]}
2... e6 {[%clk 0:03:00.4]} 3. Nc3 {[%clk 0:02:58.5]} 3... f5 {[%clk 0:03:00.7]}
4. Bf4 {[%clk 0:02:55.3]} 4... c6 {[%clk 0:03:00.5]} 5. e3 {[%clk 0:02:55]} 5...
Nf6 {[%clk 0:03:00.1]} 6. Nf3 {[%clk 0:02:55.1]} 6... Bd6 {[%clk 0:03:00.5]} 7.
Bd3 {[%clk 0:02:51.5]} 7... O-O {[%clk 0:03:00.6]} 8. O-O {[%clk 0:02:51.2]}
8... Qe7 {[%clk 0:03:00.4]} 9. Qc2 {[%clk 0:02:50.9]} 9... Ne4 {[%clk
0:03:00.1]} 10. Ne5 {[%clk 0:02:47.2]} 10... Nd7 {[%clk 0:02:59.9]} 11. f3
{[%clk 0:02:45.9]} 11... Nxc3 {[%clk 0:02:59.8]} 12. Qxc3 {[%clk 0:02:45.4]}
12... g5 {[%clk 0:02:59.5]} 13. Bg3 {[%clk 0:02:44.6]} 13... f4 {[%clk
0:02:59.2]} 14. exf4 {[%clk 0:02:43.7]} 14... gxf4 {[%clk 0:03:00.1]} 15. Bf2
{[%clk 0:02:43.1]} 15... Qg7 {[%clk 0:03:00.1]} 16. Rfe1 {[%clk 0:02:39.1]}
16... Nxe5 {[%clk 0:02:58.5]} 17. dxe5 {[%clk 0:02:38.6]} 17... Be7 {[%clk
0:02:58]} 18. b4 {[%clk 0:02:34.5]} 18... a6 {[%clk 0:02:57]} 19. cxd5 {[%clk
0:02:32.3]} 19... exd5 {[%clk 0:02:54.7]} 20. Bd4 {[%clk 0:02:31.9]} 20... Be6
{[%clk 0:02:54.7]} 21. a4 {[%clk 0:02:26.9]} 21... Rac8 {[%clk 0:02:47.6]} 22.
Bc5 {[%clk 0:02:19.7]} 22... Bxc5+ {[%clk 0:02:43.7]} 23. bxc5 {[%clk
0:02:17.5]} 23... Kh8 {[%clk 0:02:42]} 24. Re2 {[%clk 0:02:11.2]} 24... Rc7
{[%clk 0:02:40]} 25. Rb1 {[%clk 0:02:10.6]} 25... Re7 {[%clk 0:02:39.7]} 26.
Reb2 {[%clk 0:02:08.9]} 26... Rfe8 {[%clk 0:02:36.9]} 27. Qd4 {[%clk 0:02:05.4]}
27... Bc8 {[%clk 0:02:35.3]} 28. Qxf4 {[%clk 0:01:52.7]} 28... Rxe5 {[%clk
0:02:35.2]} 29. Bf1 {[%clk 0:01:42.7]} 29... Rf5 {[%clk 0:02:29.1]} 30. Qg3
{[%clk 0:01:30.7]} 30... Rg5 {[%clk 0:02:26.8]} 31. Qf2 {[%clk 0:01:25.7]} 31...
Rge5 {[%clk 0:02:15.4]} 32. Rb4 {[%clk 0:01:18.2]} 32... Re3 {[%clk 0:02:09.8]}
33. Rh4 {[%clk 0:01:12.3]} 33... Qc3 {[%clk 0:02:00.6]} 34. Qb2 {[%clk
0:01:00.8]} 34... Qxb2 {[%clk 0:01:53.2]} 35. Rxb2 {[%clk 0:01:01.7]} 35... Rc3
{[%clk 0:01:52.9]} 36. Rbb4 {[%clk 0:00:54.5]} 36... Rxc5 {[%clk 0:01:51.9]} 37.
Bd3 {[%clk 0:00:54.2]} 37... Re7 {[%clk 0:01:49.9]} 38. Rbf4 {[%clk 0:00:53.3]}
38... Kg8 {[%clk 0:01:47.2]} 39. Rh5 {[%clk 0:00:46.8]} 39... Rc1+ {[%clk
0:01:42.5]} 40. Kf2 {[%clk 0:00:45.4]} 40... Rg7 {[%clk 0:01:24.4]} 41. Rfh4
{[%clk 0:00:39.1]} 41... Rd1 {[%clk 0:01:10.4]} 42. Bxh7+ {[%clk 0:00:35.2]}
42... Kf8 {[%clk 0:01:10.3]} 43. g3 {[%clk 0:00:28.4]} 43... Re7 {[%clk
0:01:02]} 44. Rf4+ {[%clk 0:00:22.6]} 44... Kg7 {[%clk 0:00:55.2]} 45. Rg5+
{[%clk 0:00:10.9]} 45... Kh6 {[%clk 0:00:31.7]} 46. Rg8 {[%clk 0:00:07]} 46...
Rd2+ {[%clk 0:00:29.2]} 47. Kf1 {[%clk 0:00:06.7]} 47... Bh3+ {[%clk 0:00:29]}
48. Kg1 {[%clk 0:00:06.5]} 48... Re1# {[%clk 0:00:28.8]} 0-1

[Event "Early-Titled-Tuesday-Blitz-September-26-2023"]
[Site "Chess.com"]
[Date "2023.09.26"]
[Round "8"]
[White "Yuruultei"]
[Black "FMStan15"]
[Result "0-1"]
[WhiteElo "2252"]
[BlackElo "2108"]
[TimeControl "180+1"]
[EndTime "9:29:30 PDT"]
[Termination "FMStan15 won on time"]

1. d4 {[%clk 0:02:57.7]} 1... Nf6 {[%clk 0:02:58.8]} 2. c4 {[%clk 0:02:57.5]}
2... g6 {[%clk 0:02:57.6]} 3. Nc3 {[%clk 0:02:57.3]} 3... Bg7 {[%clk 0:02:57.9]}
4. e4 {[%clk 0:02:58]} 4... d6 {[%clk 0:02:58.2]} 5. Be2 {[%clk 0:02:58.9]} 5...
O-O {[%clk 0:02:51.9]} 6. Nf3 {[%clk 0:02:59.8]} 6... e5 {[%clk 0:02:52.2]} 7.
O-O {[%clk 0:03:00.7]} 7... Nbd7 {[%clk 0:02:51]} 8. Be3 {[%clk 0:02:39.6]} 8...
Ng4 {[%clk 0:02:49.2]} 9. Bg5 {[%clk 0:02:38.7]} 9... f6 {[%clk 0:02:48.9]} 10.
Bc1 {[%clk 0:02:39]} 10... f5 {[%clk 0:02:49.2]} 11. d5 {[%clk 0:02:37.7]} 11...
f4 {[%clk 0:02:46.7]} 12. b4 {[%clk 0:02:36.4]} 12... b6 {[%clk 0:02:41.6]} 13.
a4 {[%clk 0:02:36.4]} 13... h6 {[%clk 0:02:40.6]} 14. Ba3 {[%clk 0:02:36.3]}
14... g5 {[%clk 0:02:38.2]} 15. c5 {[%clk 0:02:31.9]} 15... bxc5 {[%clk
0:02:31]} 16. bxc5 {[%clk 0:02:32.8]} 16... Nxc5 {[%clk 0:02:27.2]} 17. Bxc5
{[%clk 0:02:32.1]} 17... dxc5 {[%clk 0:02:27]} 18. Nd2 {[%clk 0:02:29.5]} 18...
Nf6 {[%clk 0:02:26]} 19. Nb3 {[%clk 0:02:28.2]} 19... Qe7 {[%clk 0:02:23.3]} 20.
h3 {[%clk 0:02:24.6]} 20... Rb8 {[%clk 0:02:11.1]} 21. Rc1 {[%clk 0:01:54.7]}
21... Bd7 {[%clk 0:02:08.8]} 22. Nb5 {[%clk 0:01:50.1]} 22... Bxb5 {[%clk
0:01:50.6]} 23. axb5 {[%clk 0:01:35.6]} 23... Nxe4 {[%clk 0:01:48.6]} 24. Bd3
{[%clk 0:01:27.2]} 24... Nd6 {[%clk 0:01:41.8]} 25. Rxc5 {[%clk 0:01:25.8]}
25... e4 {[%clk 0:01:39.4]} 26. Re1 {[%clk 0:01:14.7]} 26... Rfe8 {[%clk
0:01:19.2]} 27. Qc1 {[%clk 0:00:57.6]} 27... Qf6 {[%clk 0:01:14.8]} 28. Bf1
{[%clk 0:00:41.3]} 28... Re7 {[%clk 0:00:48.1]} 29. Rxc7 {[%clk 0:00:34]} 29...
Nxb5 {[%clk 0:00:39.2]} 30. Rc8+ {[%clk 0:00:22.6]} 30... Rxc8 {[%clk
0:00:28.2]} 31. Qxc8+ {[%clk 0:00:23.5]} 31... Kh7 {[%clk 0:00:28.3]} 32. Bxb5
{[%clk 0:00:23]} 32... e3 {[%clk 0:00:24.2]} 33. fxe3 {[%clk 0:00:13.6]} 33...
fxe3 {[%clk 0:00:22.8]} 34. Qc2+ {[%clk 0:00:13.2]} 34... Kh8 {[%clk 0:00:17.8]}
35. Rf1 {[%clk 0:00:10.4]} 35... Qb6 {[%clk 0:00:15]} 36. Bd3 {[%clk 0:00:10.4]}
36... e2+ {[%clk 0:00:14.8]} 37. Kh2 {[%clk 0:00:07.2]} 37... exf1=Q {[%clk
0:00:14.8]} 38. Bxf1 {[%clk 0:00:05.8]} 38... Qc7+ {[%clk 0:00:13]} 39. Qxc7
{[%clk 0:00:04.3]} 39... Rxc7 {[%clk 0:00:13.2]} 40. Bb5 {[%clk 0:00:05.2]}
40... Be5+ {[%clk 0:00:11.7]} 41. Kg1 {[%clk 0:00:04.3]} 41... Rb7 {[%clk
0:00:10.5]} 42. Bc6 {[%clk 0:00:01.5]} 42... Rxb3 {[%clk 0:00:09.1]} 0-1

[Event "Early-Titled-Tuesday-Blitz-September-26-2023"]
[Site "Chess.com"]
[Date "2023.09.26"]
[Round "8"]
[White "hakanazeri2"]
[Black "vovachesss"]
[Result "1-0"]
[WhiteElo "2624"]
[BlackElo "2736"]
[TimeControl "180+1"]
[EndTime "9:29:31 PDT"]
[Termination "hakanazeri2 won by checkmate"]

1. Nf3 {[%clk 0:03:00.3]} 1... d6 {[%clk 0:02:58.4]} 2. d4 {[%clk 0:02:58.7]}
2... Nf6 {[%clk 0:02:55.1]} 3. c4 {[%clk 0:02:58.6]} 3... g6 {[%clk 0:02:46.2]}
4. Nc3 {[%clk 0:02:57]} 4... Bf5 {[%clk 0:02:45.5]} 5. Nh4 {[%clk 0:02:32.4]}
5... Bd7 {[%clk 0:02:44.4]} 6. e4 {[%clk 0:02:31.8]} 6... e5 {[%clk 0:02:44.3]}
7. Nf3 {[%clk 0:02:31]} 7... Nc6 {[%clk 0:02:42.2]} 8. d5 {[%clk 0:02:30.8]}
8... Ne7 {[%clk 0:02:42.4]} 9. Be2 {[%clk 0:02:16.1]} 9... Bg7 {[%clk
0:02:40.4]} 10. O-O {[%clk 0:02:15.4]} 10... O-O {[%clk 0:02:39.1]} 11. b4
{[%clk 0:02:13.2]} 11... a5 {[%clk 0:02:38.6]} 12. bxa5 {[%clk 0:02:13]} 12...
Rxa5 {[%clk 0:02:34.3]} 13. a4 {[%clk 0:02:13]} 13... c5 {[%clk 0:02:13.2]} 14.
Nd2 {[%clk 0:01:54.7]} 14... b6 {[%clk 0:02:06.1]} 15. f3 {[%clk 0:01:46.6]}
15... Nh5 {[%clk 0:02:03.6]} 16. Nb3 {[%clk 0:01:46.2]} 16... Ra8 {[%clk
0:02:03.2]} 17. Bd2 {[%clk 0:01:40.5]} 17... Nf4 {[%clk 0:01:52.9]} 18. Nb5
{[%clk 0:01:39.4]} 18... Nc8 {[%clk 0:01:47.2]} 19. a5 {[%clk 0:01:03.1]} 19...
bxa5 {[%clk 0:01:06.9]} 20. Rxa5 {[%clk 0:00:51.8]} 20... Rxa5 {[%clk 0:00:58]}
21. Nxa5 {[%clk 0:00:51.3]} 21... f5 {[%clk 0:00:50.5]} 22. exf5 {[%clk
0:00:45]} 22... gxf5 {[%clk 0:00:33.5]} 23. Nc6 {[%clk 0:00:25.8]} 23... Qb6
{[%clk 0:00:23.8]} 24. Bxf4 {[%clk 0:00:21.1]} 24... exf4 {[%clk 0:00:22]} 25.
Qd2 {[%clk 0:00:19.4]} 25... Bxc6 {[%clk 0:00:16.6]} 26. dxc6 {[%clk 0:00:20.3]}
26... Qxc6 {[%clk 0:00:16.6]} 27. Qxf4 {[%clk 0:00:19.6]} 27... Be5 {[%clk
0:00:11.8]} 28. Qd2 {[%clk 0:00:10.6]} 28... f4 {[%clk 0:00:09.8]} 29. Bd3
{[%clk 0:00:10.4]} 29... Ne7 {[%clk 0:00:08.6]} 30. Be4 {[%clk 0:00:10.2]} 30...
Qd7 {[%clk 0:00:06.6]} 31. Qd3 {[%clk 0:00:07.6]} 31... Nf5 {[%clk 0:00:05.8]}
32. Bxf5 {[%clk 0:00:05.9]} 32... Rxf5 {[%clk 0:00:06.7]} 33. Nc3 {[%clk
0:00:05.8]} 33... Bd4+ {[%clk 0:00:05.5]} 34. Kh1 {[%clk 0:00:05.9]} 34... Rh5
{[%clk 0:00:05.4]} 35. Nd5 {[%clk 0:00:05.4]} 35... Qf7 {[%clk 0:00:03.6]} 36.
h3 {[%clk 0:00:03.4]} 36... Qe6 {[%clk 0:00:02.6]} 37. Kh2 {[%clk 0:00:03.3]}
37... Rg5 {[%clk 0:00:01.4]} 38. Rb1 {[%clk 0:00:03]} 38... Kg7 {[%clk
0:00:01.4]} 39. Rb7+ {[%clk 0:00:03.3]} 39... Kh6 {[%clk 0:00:01.4]} 40. Qxh7#
{[%clk 0:00:03.4]} 1-0

[Event "Early-Titled-Tuesday-Blitz-September-26-2023"]
[Site "Chess.com"]
[Date "2023.09.26"]
[Round "8"]
[White "Goryachkina"]
[Black "PavelChernomordik"]
[Result "1-0"]
[WhiteElo "2677"]
[BlackElo "2500"]
[TimeControl "180+1"]
[EndTime "9:29:37 PDT"]
[Termination "Goryachkina won by resignation"]

1. e4 {[%clk 0:02:59.9]} 1... g6 {[%clk 0:02:59.6]} 2. d4 {[%clk 0:02:59.2]}
2... Bg7 {[%clk 0:02:59.1]} 3. Nc3 {[%clk 0:02:59]} 3... d6 {[%clk 0:02:58.8]}
4. Be3 {[%clk 0:02:58.5]} 4... a6 {[%clk 0:02:58.7]} 5. a4 {[%clk 0:02:58.2]}
5... b6 {[%clk 0:02:58.7]} 6. Nf3 {[%clk 0:02:56.9]} 6... e6 {[%clk 0:02:49.9]}
7. Bd3 {[%clk 0:02:55.8]} 7... Bb7 {[%clk 0:02:48.4]} 8. O-O {[%clk 0:02:53.6]}
8... Nd7 {[%clk 0:02:48.2]} 9. Qd2 {[%clk 0:02:52.6]} 9... h6 {[%clk 0:02:46.1]}
10. Rfe1 {[%clk 0:02:46.5]} 10... Ne7 {[%clk 0:02:44.7]} 11. Ne2 {[%clk
0:02:42.7]} 11... Nf6 {[%clk 0:02:37.1]} 12. Ng3 {[%clk 0:02:38.4]} 12... Ng4
{[%clk 0:02:36.4]} 13. c4 {[%clk 0:02:19.9]} 13... Nxe3 {[%clk 0:02:28.2]} 14.
Qxe3 {[%clk 0:02:20.1]} 14... O-O {[%clk 0:02:09.7]} 15. Rad1 {[%clk 0:02:12.6]}
15... a5 {[%clk 0:02:04.8]} 16. e5 {[%clk 0:02:08.7]} 16... c5 {[%clk
0:01:38.9]} 17. dxc5 {[%clk 0:01:58.7]} 17... dxc5 {[%clk 0:01:25.2]} 18. Bxg6
{[%clk 0:01:57.2]} 18... Qc7 {[%clk 0:01:22.8]} 19. Bc2 {[%clk 0:01:56.4]} 19...
Bxf3 {[%clk 0:01:19.6]} 20. Qxf3 {[%clk 0:01:56.2]} 20... Bxe5 {[%clk
0:01:16.9]} 21. Qg4+ {[%clk 0:01:40.9]} 21... Kh8 {[%clk 0:01:11]} 22. Qh4
{[%clk 0:01:30.1]} 22... Bg7 {[%clk 0:01:06.1]} 23. Nh5 {[%clk 0:01:29.9]} 23...
Ng6 {[%clk 0:00:59.3]} 24. Bxg6 {[%clk 0:01:26.2]} 24... fxg6 {[%clk 0:00:58.8]}
25. Nxg7 {[%clk 0:01:26.1]} 25... Kxg7 {[%clk 0:00:49.6]} 26. Rxe6 {[%clk
0:01:23.1]} 26... Rae8 {[%clk 0:00:49.4]} 27. Rxe8 {[%clk 0:01:12.3]} 27... Rxe8
{[%clk 0:00:49]} 28. h3 {[%clk 0:01:12.4]} 28... Qc6 {[%clk 0:00:33.6]} 29. b3
{[%clk 0:01:00.8]} 29... g5 {[%clk 0:00:27.4]} 30. Qg4 {[%clk 0:00:59.7]} 30...
Re7 {[%clk 0:00:25]} 31. Qf5 {[%clk 0:00:57.4]} 31... Rf7 {[%clk 0:00:19.7]} 32.
Qe5+ {[%clk 0:00:56.8]} 32... Kh7 {[%clk 0:00:19.5]} 33. Rd8 {[%clk 0:00:56]}
33... Qf6 {[%clk 0:00:17.9]} 34. Qxf6 {[%clk 0:00:35.3]} 34... Rxf6 {[%clk
0:00:17.7]} 35. f3 {[%clk 0:00:35.6]} 35... Kg6 {[%clk 0:00:17.4]} 36. Kf2
{[%clk 0:00:35.7]} 36... Kf5 {[%clk 0:00:16.9]} 37. g3 {[%clk 0:00:34.3]} 37...
Ke5 {[%clk 0:00:17.2]} 38. Ke3 {[%clk 0:00:33.5]} 38... Re6 {[%clk 0:00:16.8]}
39. f4+ {[%clk 0:00:23.9]} 39... gxf4+ {[%clk 0:00:16.5]} 40. gxf4+ {[%clk
0:00:24.4]} 40... Kf5+ {[%clk 0:00:16.5]} 41. Kf3 {[%clk 0:00:25]} 41... Re1
{[%clk 0:00:12.9]} 42. Rf8+ {[%clk 0:00:18.6]} 42... Ke6 {[%clk 0:00:12.5]} 43.
Re8+ {[%clk 0:00:18.9]} 1-0

[Event "Early-Titled-Tuesday-Blitz-September-26-2023"]
[Site "Chess.com"]
[Date "2023.09.26"]
[Round "8"]
[White "CarlosjPineror"]
[Black "Kopytkin"]
[Result "1-0"]
[WhiteElo "2574"]
[BlackElo "2374"]
[TimeControl "180+1"]
[EndTime "9:29:39 PDT"]
[Termination "CarlosjPineror won on time"]

1. e4 {[%clk 0:03:00.9]} 1... Nf6 {[%clk 0:02:57.9]} 2. d3 {[%clk 0:02:55.2]}
2... e5 {[%clk 0:02:57.2]} 3. Nd2 {[%clk 0:02:51.4]} 3... Nc6 {[%clk 0:02:57.2]}
4. Ngf3 {[%clk 0:02:50.4]} 4... d5 {[%clk 0:02:52.4]} 5. Be2 {[%clk 0:02:32.1]}
5... g6 {[%clk 0:02:52.1]} 6. c3 {[%clk 0:02:30.9]} 6... Bg7 {[%clk 0:02:52.2]}
7. O-O {[%clk 0:02:26]} 7... O-O {[%clk 0:02:52.3]} 8. h3 {[%clk 0:02:25]} 8...
Re8 {[%clk 0:02:52.5]} 9. a4 {[%clk 0:02:24.8]} 9... a5 {[%clk 0:02:52.4]} 10.
Qc2 {[%clk 0:02:24.8]} 10... b6 {[%clk 0:02:51.3]} 11. Rd1 {[%clk 0:02:25]}
11... Ba6 {[%clk 0:02:49.1]} 12. Nf1 {[%clk 0:02:25.3]} 12... Qd7 {[%clk
0:02:40]} 13. Ng3 {[%clk 0:02:24.2]} 13... Rad8 {[%clk 0:02:30.4]} 14. Bg5
{[%clk 0:02:23.7]} 14... h6 {[%clk 0:02:30.2]} 15. Bxf6 {[%clk 0:02:21.7]} 15...
Bxf6 {[%clk 0:02:30.2]} 16. Re1 {[%clk 0:02:18.9]} 16... Bg7 {[%clk 0:02:07.5]}
17. Rad1 {[%clk 0:02:18.2]} 17... d4 {[%clk 0:02:04.1]} 18. Bf1 {[%clk
0:02:06.5]} 18... Ne7 {[%clk 0:01:50.9]} 19. c4 {[%clk 0:01:27]} 19... c6 {[%clk
0:01:43.9]} 20. b3 {[%clk 0:01:24.9]} 20... b5 {[%clk 0:01:40.5]} 21. axb5
{[%clk 0:01:18.9]} 21... cxb5 {[%clk 0:01:40.1]} 22. Ra1 {[%clk 0:01:19.3]}
22... bxc4 {[%clk 0:01:25.3]} 23. bxc4 {[%clk 0:01:18.5]} 23... Nc6 {[%clk
0:01:25]} 24. Reb1 {[%clk 0:01:14.2]} 24... Rb8 {[%clk 0:01:18]} 25. Ne1 {[%clk
0:01:11.8]} 25... h5 {[%clk 0:01:12.8]} 26. Qa2 {[%clk 0:01:05.9]} 26... Bf8
{[%clk 0:01:09.3]} 27. Nc2 {[%clk 0:01:03.8]} 27... Nb4 {[%clk 0:00:59.7]} 28.
Nxb4 {[%clk 0:01:02.8]} 28... Bxb4 {[%clk 0:01:00.6]} 29. Rxb4 {[%clk
0:00:54.7]} 29... Rxb4 {[%clk 0:00:48.4]} 30. Qxa5 {[%clk 0:00:54.4]} 30... Rbb8
{[%clk 0:00:19.8]} 31. Qxa6 {[%clk 0:00:53.6]} 31... Ra8 {[%clk 0:00:20.1]} 32.
Qxa8 {[%clk 0:00:53.3]} 32... Rxa8 {[%clk 0:00:20.6]} 33. Rxa8+ {[%clk
0:00:54.2]} 33... Kg7 {[%clk 0:00:21.2]} 34. Ra5 {[%clk 0:00:51.7]} 34... f6
{[%clk 0:00:20.7]} 35. Ne2 {[%clk 0:00:48.8]} 35... Qb7 {[%clk 0:00:20.5]} 36.
Rb5 {[%clk 0:00:48.5]} 36... Qa7 {[%clk 0:00:19.6]} 37. Nc1 {[%clk 0:00:48.1]}
37... Kh6 {[%clk 0:00:10]} 38. g3 {[%clk 0:00:47.1]} 38... h4 {[%clk 0:00:10.1]}
39. g4 {[%clk 0:00:43.8]} 39... Kg5 {[%clk 0:00:10]} 40. Ne2 {[%clk 0:00:40.8]}
40... Kh6 {[%clk 0:00:07.9]} 41. Nc1 {[%clk 0:00:34.1]} 41... Kg5 {[%clk
0:00:07.5]} 42. Nb3 {[%clk 0:00:34.2]} 42... Kf4 {[%clk 0:00:07.2]} 43. Kg2
{[%clk 0:00:29.4]} 43... Qa2 {[%clk 0:00:06.3]} 44. Nc5 {[%clk 0:00:29.2]} 44...
Kg5 {[%clk 0:00:03.7]} 45. Ne6+ {[%clk 0:00:27]} 45... Kh6 {[%clk 0:00:04]} 46.
Rb8 {[%clk 0:00:26]} 46... Kh7 {[%clk 0:00:04.2]} 47. Rb7+ {[%clk 0:00:25.6]}
47... Kh6 {[%clk 0:00:04.1]} 48. Nf8 {[%clk 0:00:24.4]} 48... Kg5 {[%clk
0:00:01.8]} 49. Rh7 {[%clk 0:00:21.6]} 1-0

[Event "Early-Titled-Tuesday-Blitz-September-26-2023"]
[Site "Chess.com"]
[Date "2023.09.26"]
[Round "8"]
[White "Hasangatin_Ramil"]
[Black "ArmanGhevondyanchess"]
[Result "1-0"]
[WhiteElo "2717"]
[BlackElo "2605"]
[TimeControl "180+1"]
[EndTime "9:29:40 PDT"]
[Termination "Hasangatin_Ramil won by resignation"]

1. e4 {[%clk 0:03:00.9]} 1... c5 {[%clk 0:02:59.6]} 2. Nf3 {[%clk 0:03:01]} 2...
Nc6 {[%clk 0:02:59.7]} 3. Bb5 {[%clk 0:03:00.9]} 3... g6 {[%clk 0:02:58.6]} 4.
O-O {[%clk 0:03:00.8]} 4... Bg7 {[%clk 0:02:58.9]} 5. c3 {[%clk 0:03:01.3]} 5...
a6 {[%clk 0:02:58.8]} 6. Bxc6 {[%clk 0:03:00.2]} 6... bxc6 {[%clk 0:02:59.7]} 7.
Re1 {[%clk 0:02:58.8]} 7... Rb8 {[%clk 0:03:00.2]} 8. d4 {[%clk 0:02:57.7]} 8...
cxd4 {[%clk 0:03:01.1]} 9. cxd4 {[%clk 0:02:57.9]} 9... Nh6 {[%clk 0:03:01.8]}
10. Nc3 {[%clk 0:02:57.1]} 10... O-O {[%clk 0:03:02.2]} 11. b3 {[%clk
0:02:56.4]} 11... d6 {[%clk 0:03:02.8]} 12. h3 {[%clk 0:02:56.1]} 12... f6
{[%clk 0:03:03]} 13. Be3 {[%clk 0:02:55.1]} 13... Nf7 {[%clk 0:03:03.5]} 14. Qd2
{[%clk 0:02:54.8]} 14... Qa5 {[%clk 0:03:03.3]} 15. Rac1 {[%clk 0:02:54.3]}
15... Qh5 {[%clk 0:03:03.1]} 16. Nh2 {[%clk 0:02:49.4]} 16... g5 {[%clk
0:03:01.4]} 17. Ne2 {[%clk 0:02:40.2]} 17... Bd7 {[%clk 0:03:01.2]} 18. f4
{[%clk 0:02:33.1]} 18... Qg6 {[%clk 0:02:59.2]} 19. f5 {[%clk 0:02:32.6]} 19...
Qh5 {[%clk 0:02:56.2]} 20. Ng3 {[%clk 0:02:31]} 20... Qh4 {[%clk 0:02:56.2]} 21.
Qf2 {[%clk 0:02:26.8]} 21... Kh8 {[%clk 0:02:43.9]} 22. Rc4 {[%clk 0:02:20.7]}
22... Rb5 {[%clk 0:02:38.2]} 23. Rec1 {[%clk 0:02:19.7]} 23... Rfb8 {[%clk
0:02:30]} 24. Nf3 {[%clk 0:02:10.1]} 24... Qh6 {[%clk 0:02:29.2]} 25. h4 {[%clk
0:02:10.5]} 25... Rb4 {[%clk 0:02:25.7]} 26. h5 {[%clk 0:02:09.8]} 26... Rxc4
{[%clk 0:02:23.4]} 27. Rxc4 {[%clk 0:02:09.8]} 27... Bf8 {[%clk 0:02:16.9]} 28.
Nh2 {[%clk 0:02:09.6]} 28... Qg7 {[%clk 0:02:14.9]} 29. Ra4 {[%clk 0:02:06.3]}
29... Bc8 {[%clk 0:02:12.9]} 30. Qd2 {[%clk 0:02:01.4]} 30... e6 {[%clk
0:02:07.5]} 31. fxe6 {[%clk 0:01:55.1]} 31... Bxe6 {[%clk 0:02:08.4]} 32. Rxa6
{[%clk 0:01:55.1]} 32... Nd8 {[%clk 0:02:03.9]} 33. Qa5 {[%clk 0:01:47.9]} 33...
Qb7 {[%clk 0:01:58.5]} 34. Ra7 {[%clk 0:01:44.9]} 34... Qb4 {[%clk 0:01:52.4]}
35. Qxb4 {[%clk 0:01:35.1]} 35... Rxb4 {[%clk 0:01:53.3]} 36. Ra8 {[%clk
0:01:29.3]} 36... Be7 {[%clk 0:01:53.4]} 37. Nf5 {[%clk 0:01:10.1]} 37... Bxf5
{[%clk 0:01:53.4]} 38. exf5 {[%clk 0:01:10.4]} 38... Kg8 {[%clk 0:01:52.1]} 39.
Kf2 {[%clk 0:01:03.1]} 39... Kf7 {[%clk 0:01:52.5]} 40. Ke2 {[%clk 0:01:03.2]}
40... Rb5 {[%clk 0:01:51.1]} 41. g4 {[%clk 0:00:58.6]} 41... c5 {[%clk 0:01:48]}
42. Nf3 {[%clk 0:00:53.4]} 42... Nc6 {[%clk 0:01:47.9]} 43. dxc5 {[%clk
0:00:47.4]} 43... dxc5 {[%clk 0:01:47.3]} 44. Kd2 {[%clk 0:00:30.2]} 44... Rb4
{[%clk 0:01:43.1]} 45. Rc8 {[%clk 0:00:26.5]} 45... Ne5 {[%clk 0:01:04.5]} 46.
Nxe5+ {[%clk 0:00:25.1]} 46... fxe5 {[%clk 0:01:05.4]} 47. Rc7 {[%clk
0:00:23.6]} 47... Kf6 {[%clk 0:01:01.9]} 48. Rxe7 {[%clk 0:00:22.2]} 48... Rxg4
{[%clk 0:01:00]} 49. Rxh7 {[%clk 0:00:21]} 49... Kxf5 {[%clk 0:01:00]} 50. Rg7
{[%clk 0:00:20.4]} 50... c4 {[%clk 0:00:57.8]} 51. bxc4 {[%clk 0:00:15.5]} 51...
Rxc4 {[%clk 0:00:58.7]} 52. Rxg5+ {[%clk 0:00:15.6]} 52... Kf6 {[%clk
0:00:58.3]} 53. h6 {[%clk 0:00:15.4]} 53... Rh4 {[%clk 0:00:58.3]} 54. Rg2
{[%clk 0:00:15]} 54... Rh3 {[%clk 0:00:58.3]} 55. Rf2+ {[%clk 0:00:15.1]} 55...
Ke6 {[%clk 0:00:58.6]} 56. Rg2 {[%clk 0:00:15.2]} 56... Kf5 {[%clk 0:00:58.7]}
57. Rg7 {[%clk 0:00:13.8]} 57... Ke4 {[%clk 0:00:59.1]} 58. h7 {[%clk
0:00:13.9]} 58... Rh2+ {[%clk 0:00:58.9]} 59. Kc3 {[%clk 0:00:13.1]} 59... Kxe3
{[%clk 0:00:59]} 60. a4 {[%clk 0:00:13.3]} 60... e4 {[%clk 0:00:43.7]} 61. a5
{[%clk 0:00:13.4]} 61... Ke2 {[%clk 0:00:38.7]} 62. a6 {[%clk 0:00:13.4]} 1-0